Workbook

Sheet rfm22b data export
A1: Date | B1: Chamber Time | C1: Real Time | D1: Seconds | E1: Air Temp | F1: Load Temp | I1: Freq Time | J1: Freq | L1: Dewpoint | M1: RH
A2: 2013-07-06 | B2: 10:51:26 | C2: =TIME(HOUR(B2)-1,MINUTE(B2),SECOND(B2)) -> 09:51:26 | D2: =(B2*86400) -39086 -> 0 | E2: 13.1 | F2: 20.9 | I2: 09:51:24 | J2: 434.2804 | L2: =(E2 - (14.55 + 0.114 * E2) * (1 - (0.01 * M2)) - ((2.5 + 0.007 * E2) * (1 - (0.01 * M2))) ^ 3 - (15.9 + 0.117 * E2) * (1 - (0.01 * M2)) ^ 14) -> 1.375798033 | M2: 45
A3: 2013-07-06 | B3: 10:51:32 | C3: =TIME(HOUR(B3)-1,MINUTE(B3),SECOND(B3)) -> 09:51:32 | D3: =(B3*86400) -39086 -> 6 | E3: 11.6 | F3: 20 | I3: 09:51:34 | J3: 434.2805 | L3: =(E3 - (14.55 + 0.114 * E3) * (1 - (0.01 * M3)) - ((2.5 + 0.007 * E3) * (1 - (0.01 * M3))) ^ 3 - (15.9 + 0.117 * E3) * (1 - (0.01 * M3)) ^ 14) -> 0.004948346162 | M3: 45
A4: 2013-07-06 | B4: 10:51:38 | C4: 09:51:38 | D4: 12 | E4: 10.2 | F4: 19 | J4: 434.2808 | L4: -1.274767688 | M4: 45
A5: 2013-07-06 | B5: 10:51:44 | C5: 09:51:44 | D5: 18 | E5: 8.7 | F5: 18.2 | J5: 434.2808 | L5: -2.646165552 | M5: 45
A6: 2013-07-06 | B6: 10:51:50 | C6: 09:51:50 | D6: 24 | E6: 7.3 | F6: 17.3 | I6: 09:51:44 | J6: 434.2808 | L6: -3.926391203 | M6: 45
A7: 2013-07-06 | B7: 10:51:56 | C7: 09:51:56 | D7: 30 | E7: 6 | F7: 16.4 | I7: 09:51:54 | J7: 434.2807 | L7: -5.115391182 | M7: 45
A8: 2013-07-06 | B8: 10:52:02 | C8: 09:52:02 | D8: 36 | E8: 4.6 | F8: 15.6 | I8: 09:52:04 | J8: 434.2807 | L8: -6.396087679 | M8: 45
A9: 2013-07-06 | B9: 10:52:08 | C9: 09:52:08 | D9: 42 | E9: 3.3 | F9: 14.6 | J9: 434.2803 | L9: -7.58552325 | M9: 45
A10: 2013-07-06 | B10: 10:52:14 | C10: 09:52:14 | D10: 48 | E10: 1.9 | F10: 13.7 | J10: 434.2803 | L10: -8.866687099 | M10: 45
A11: 2013-07-06 | B11: 10:52:20 | C11: 09:52:20 | D11: 54 | E11: 0.7 | F11: 12.7 | I11: 09:52:14 | J11: 434.2803 | L11: -9.965019357 | M11: 45
A12: 2013-07-06 | B12: 10:52:26 | C12: 09:52:26 | D12: 60 | E12: -0.6 | F12: 11.7 | I12: 09:52:24 | J12: 434.2804 | L12: -11.15507839 | M12: 45
A13: 2013-07-06 | B13: 10:52:32 | C13: 09:52:32 | D13: 66 | E13: -1.8 | F13: 10.7 | I13: 09:52:34 | J13: 434.2807 | L13: -12.25377755 | M13: 45
A14: 2013-07-06 | B14: 10:52:38 | C14: 09:52:38 | D14: 72 | E14: -3 | F14: 9.6 | J14: 434.2804 | L14: -13.35265192 | M14: 45
A15: 2013-07-06 | B15: 10:52:44 | C15: 09:52:44 | D15: 78 | E15: -4.2 | F15: 8.6 | J15: 434.2804 | L15: -14.45170091 | M15: 45
A16: 2013-07-06 | B16: 10:52:50 | C16: 09:52:50 | D16: 84 | E16: -5.4 | F16: 7.6 | I16: 09:52:44 | J16: 434.2804 | L16: -15.55092391 | M16: 45
A17: 2013-07-06 | B17: 10:52:56 | C17: 09:52:56 | D17: 90 | E17: -6.5 | F17: 6.5 | I17: 09:52:54 | J17: 434.2804 | L17: -16.55869736 | M17: 45
A18: 2013-07-06 | B18: 10:53:02 | C18: 09:53:02 | D18: 96 | E18: -7.5 | F18: 5.4 | I18: 09:53:04 | J18: 434.2808 | L18: -17.47498112 | M18: 45
A19: 2013-07-06 | B19: 10:53:08 | C19: 09:53:08 | D19: 102 | E19: -8.7 | F19: 4.4 | J19: 434.2807 | L19: -18.57467963 | M19: 45
A20: 2013-07-06 | B20: 10:53:14 | C20: 09:53:14 | D20: 108 | E20: -9.7 | F20: 3.3 | J20: 434.2807 | L20: -19.49122632 | M20: 45
A21: 2013-07-06 | B21: 10:53:20 | C21: 09:53:20 | D21: 114 | E21: -10.7 | F21: 2.2 | I21: 09:53:14 | J21: 434.2807 | L21: -20.40789197 | M21: 45
A22: 2013-07-06 | B22: 10:53:26 | C22: 09:53:26 | D22: 120 | E22: -11.4 | F22: 1.3 | I22: 09:53:24 | J22: 434.2812 | L22: -21.04962852 | M22: 45
A23: 2013-07-06 | B23: 10:53:32 | C23: 09:53:32 | D23: 126 | E23: -11.8 | F23: 0.5 | I23: 09:53:34 | J23: 434.281 | L23: -21.41636118 | M23: 45
A24: 2013-07-06 | B24: 10:53:38 | C24: 09:53:38 | D24: 132 | E24: -12.1 | F24: -0.2 | J24: 434.2811 | L24: -21.69142308 | M24: 45
A25: 2013-07-06 | B25: 10:53:44 | C25: 09:53:44 | D25: 138 | E25: -12.4 | F25: -0.8 | J25: 434.2811 | L25: -21.96649563 | M25: 45
A26: 2013-07-06 | B26: 10:53:50 | C26: 09:53:50 | D26: 144 | E26: -12.9 | F26: -1.3 | I26: 09:53:44 | J26: 434.2811 | L26: -22.42497346 | M26: 45
A27: 2013-07-06 | B27: 10:53:56 | C27: 09:53:56 | D27: 150 | E27: -13.7 | F27: -2 | I27: 09:53:54 | J27: 434.2815 | L27: -23.15859928 | M27: 45
A28: 2013-07-06 | B28: 10:54:02 | C28: 09:54:02 | D28: 156 | E28: -14.6 | F28: -2.8 | I28: 09:54:04 | J28: 434.2818 | L28: -23.98401827 | M28: 45
A29: 2013-07-06 | B29: 10:54:08 | C29: 09:54:08 | D29: 162 | E29: -15.7 | F29: -3.7 | J29: 434.282 | L29: -24.9929927 | M29: 45
A30: 2013-07-06 | B30: 10:54:14 | C30: 09:54:14 | D30: 168 | E30: -16.8 | F30: -4.7 | J30: 434.282 | L30: -26.00210859 | M30: 45
A31: 2013-07-06 | B31: 10:54:20 | C31: 09:54:20 | D31: 174 | E31: -17.9 | F31: -5.7 | I31: 09:54:14 | J31: 434.282 | L31: -27.01136548 | M31: 45
A32: 2013-07-06 | B32: 10:54:26 | C32: 09:54:26 | D32: 180 | E32: -18.9 | F32: -6.7 | I32: 09:54:25 | J32: 434.2817 | L32: -27.92899372 | M32: 45
A33: 2013-07-06 | B33: 10:54:32 | C33: 09:54:32 | D33: 186 | E33: -19.8 | F33: -7.6 | I33: 09:54:35 | J33: 434.2818 | L33: -28.75495817 | M33: 45
A34: 2013-07-06 | B34: 10:54:38 | C34: 09:54:38 | D34: 192 | E34: -20.5 | F34: -8.5 | J34: 434.2821 | L34: -29.39743966 | M34: 45
A35: 2013-07-06 | B35: 10:54:44 | C35: 09:54:44 | D35: 198 | E35: -21 | F35: -9.2 | J35: 434.2821 | L35: -29.8563896 | M35: 45
A36: 2013-07-06 | B36: 10:54:50 | C36: 09:54:50 | D36: 204 | E36: -21.4 | F36: -9.9 | I36: 09:54:45 | J36: 434.2821 | L36: -30.22357027 | M36: 45
A37: 2013-07-06 | B37: 10:54:56 | C37: 09:54:56 | D37: 210 | E37: -21.8 | F37: -10.5 | I37: 09:54:55 | J37: 434.2825 | L37: -30.59076933 | M37: 45
A38: 2013-07-06 | B38: 10:55:02 | C38: 09:55:02 | D38: 216 | E38: -22.2 | F38: -11.2 | I38: 09:55:05 | J38: 434.2822 | L38: -30.95798676 | M38: 45
A39: 2013-07-06 | B39: 10:55:08 | C39: 09:55:08 | D39: 222 | E39: -22.9 | F39: -11.8 | J39: 434.282 | L39: -31.60066141 | M39: 45
A40: 2013-07-06 | B40: 10:55:14 | C40: 09:55:14 | D40: 228 | E40: -23.6 | F40: -12.6 | J40: 434.282 | L40: -32.24339214 | M40: 45
A41: 2013-07-06 | B41: 10:55:20 | C41: 09:55:20 | D41: 234 | E41: -24.5 | F41: -13.5 | I41: 09:55:15 | J41: 434.282 | L41: -33.06984243 | M41: 45
A42: 2013-07-06 | B42: 10:55:26 | C42: 09:55:26 | D42: 240 | E42: -25.5 | F42: -14.3 | I42: 09:55:25 | J42: 434.282 | L42: -33.98822872 | M42: 45
A43: 2013-07-06 | B43: 10:55:32 | C43: 09:55:32 | D43: 246 | E43: -26.5 | F43: -15.2 | I43: 09:55:45 | J43: 434.2824 | L43: -34.90672856 | M43: 45
A44: 2013-07-06 | B44: 10:55:38 | C44: 09:55:38 | D44: 252 | E44: -27.5 | F44: -16.1 | J44: 434.2823 | L44: -35.82534162 | M44: 45
A45: 2013-07-06 | B45: 10:55:44 | C45: 09:55:44 | D45: 258 | E45: -28.5 | F45: -17 | J45: 434.2823 | L45: -36.74406754 | M45: 45
A46: 2013-07-06 | B46: 10:55:50 | C46: 09:55:50 | D46: 264 | E46: -29.5 | F46: -17.9 | I46: 09:55:55 | J46: 434.2823 | L46: -37.66290599 | M46: 45
A47: 2013-07-06 | B47: 10:55:56 | C47: 09:55:56 | D47: 270 | E47: -30.3 | F47: -18.8 | I47: 09:56:05 | J47: 434.2824 | L47: -38.39805754 | M47: 45
A48: 2013-07-06 | B48: 10:56:02 | C48: 09:56:02 | D48: 276 | E48: -31 | F48: -19.6 | I48: 09:56:15 | J48: 434.2824 | L48: -39.04137391 | M48: 45
A49: 2013-07-06 | B49: 10:56:08 | C49: 09:56:08 | D49: 282 | E49: -31.6 | F49: -20.4 | J49: 434.2823 | L49: -39.5928315 | M49: 45
A50: 2013-07-06 | B50: 10:56:14 | C50: 09:56:14 | D50: 288 | E50: -32 | F50: -21.1 | J50: 434.2823 | L50: -39.96049218 | M50: 45
A51: 2013-07-06 | B51: 10:56:20 | C51: 09:56:20 | D51: 294 | E51: -32.5 | F51: -21.7 | I51: 09:56:25 | J51: 434.2823 | L51: -40.42009309 | M51: 45
A52: 2013-07-06 | B52: 10:56:26 | C52: 09:56:26 | D52: 300 | E52: -33 | F52: -22.4 | I52: 09:56:35 | J52: 434.282 | L52: -40.87972179 | M52: 45
A53: 2013-07-06 | B53: 10:56:32 | C53: 09:56:32 | D53: 306 | E53: -33.6 | F53: -23.1 | I53: 09:56:45 | J53: 434.2822 | L53: -41.43131284 | M53: 45
A54: 2013-07-06 | B54: 10:56:38 | C54: 09:56:38 | D54: 312 | E54: -34.4 | F54: -23.8 | J54: 434.2822 | L54: -42.16682961 | M54: 45
A55: 2013-07-06 | B55: 10:56:44 | C55: 09:56:44 | D55: 318 | E55: -35.3 | F55: -24.6 | J55: 434.2822 | L55: -42.9943705 | M55: 45
A56: 2013-07-06 | B56: 10:56:50 | C56: 09:56:50 | D56: 324 | E56: -36.2 | F56: -25.5 | I56: 09:56:55 | J56: 434.2822 | L56: -43.82200065 | M56: 45
A57: 2013-07-06 | B57: 10:56:56 | C57: 09:56:56 | D57: 330 | E57: -37.2 | F57: -26.4 | I57: 09:57:05 | J57: 434.282 | L57: -44.7416941 | M57: 45
A58: 2013-07-06 | B58: 10:57:02 | C58: 09:57:02 | D58: 336 | E58: -38.1 | F58: -27.3 | I58: 09:57:15 | J58: 434.2815 | L58: -45.56951187 | M58: 45
A59: 2013-07-06 | B59: 10:57:08 | C59: 09:57:08 | D59: 342 | E59: -39 | F59: -28.2 | J59: 434.2819 | L59: -46.39741813 | M59: 45
A60: 2013-07-06 | B60: 10:57:14 | C60: 09:57:14 | D60: 348 | E60: -39.8 | F60: -29 | J60: 434.2819 | L60: -47.13340888 | M60: 45
A61: 2013-07-06 | B61: 10:57:20 | C61: 09:57:20 | D61: 354 | E61: -40.5 | F61: -29.8 | I61: 09:57:25 | J61: 434.2819 | L61: -47.77745784 | M61: 45
A62: 2013-07-06 | B62: 10:57:26 | C62: 09:57:26 | D62: 360 | E62: -41.2 | F62: -30.7 | I62: 09:57:35 | J62: 434.2816 | L62: -48.42155993 | M62: 45
A63: 2013-07-06 | B63: 10:57:32 | C63: 09:57:32 | D63: 366 | E63: -41.8 | F63: -31.5 | I63: 09:57:45 | J63: 434.2812 | L63: -48.97368963 | M63: 45
A64: 2013-07-06 | B64: 10:57:38 | C64: 09:57:38 | D64: 372 | E64: -42.4 | F64: -32.2 | J64: 434.281 | L64: -49.5258582 | M64: 45
A65: 2013-07-06 | B65: 10:57:44 | C65: 09:57:44 | D65: 378 | E65: -43 | F65: -32.9 | J65: 434.281 | L65: -50.07806556 | M65: 45
A66: 2013-07-06 | B66: 10:57:50 | C66: 09:57:50 | D66: 384 | E66: -43.6 | F66: -33.6 | I66: 09:57:55 | J66: 434.281 | L66: -50.63031165 | M66: 45
A67: 2013-07-06 | B67: 10:57:56 | C67: =TIME(HOUR(B67)-1,MINUTE(B67),SECOND(B67)) -> 09:57:56 | D67: =(B67*86400) -39086 -> 390 | E67: -44.1 | F67: -34.3 | I67: 09:58:05 | J67: 434.2811 | L67: =(E67 - (14.55 + 0.114 * E67) * (1 - (0.01 * M67)) - ((2.5 + 0.007 * E67) * (1 - (0.01 * M67))) ^ 3 - (15.9 + 0.117 * E67) * (1 - (0.01 * M67)) ^ 14) -> -51.09054624 | M67: 45
A68: 2013-07-06 | B68: 10:58:02 | C68: 09:58:02 | D68: 396 | E68: -44.6 | F68: -34.9 | I68: 09:58:15 | J68: 434.2805 | L68: -51.55080764 | M68: 45
A69: 2013-07-06 | B69: 10:58:08 | C69: 09:58:08 | D69: 402 | E69: -45.2 | F69: -35.5 | J69: 434.2806 | L69: -52.10315662 | M69: 45
A70: 2013-07-06 | B70: 10:58:14 | C70: 09:58:14 | D70: 408 | E70: -45.7 | F70: -36.1 | J70: 434.2806 | L70: -52.56347682 | M70: 45
A71: 2013-07-06 | B71: 10:58:20 | C71: 09:58:20 | D71: 414 | E71: -46.2 | F71: -36.8 | I71: 09:58:25 | J71: 434.2806 | L71: -53.02382368 | M71: 45
A72: 2013-07-06 | B72: 10:58:26 | C72: 09:58:26 | D72: 420 | E72: -46.7 | F72: -37.4 | I72: 09:58:35 | J72: 434.2802 | L72: -53.48419715 | M72: 45
A73: 2013-07-06 | B73: 10:58:32 | C73: 09:58:32 | D73: 426 | E73: -47.3 | F73: -37.9 | I73: 09:58:45 | J73: 434.2795 | L73: -54.03668039 | M73: 45
A74: 2013-07-06 | B74: 10:58:38 | C74: 09:58:38 | D74: 432 | E74: -47.8 | F74: -38.5 | J74: 434.2791 | L74: -54.49711227 | M74: 45
A75: 2013-07-06 | B75: 10:58:44 | C75: 09:58:44 | D75: 438 | E75: -48.3 | F75: -39.2 | J75: 434.2791 | L75: -54.95757063 | M75: 45
A76: 2013-07-06 | B76: 10:58:50 | C76: 09:58:50 | D76: 444 | E76: -48.8 | F76: -39.8 | I76: 09:58:55 | J76: 434.2791 | L76: -55.41805542 | M76: 45
A77: 2013-07-06 | B77: 10:58:56 | C77: 09:58:56 | D77: 450 | E77: -49.2 | F77: -40.3 | I77: 09:59:05 | J77: 434.2789 | L77: -55.78646227 | M77: 45
A78: 2013-07-06 | B78: 10:59:02 | C78: 09:59:02 | D78: 456 | E78: -49.6 | F78: -40.8 | I78: 09:59:15 | J78: 434.2782 | L78: -56.15488598 | M78: 45
A79: 2013-07-06 | B79: 10:59:08 | C79: 09:59:08 | D79: 462 | E79: -50 | F79: -41.3 | J79: 434.2785 | L79: -56.52332654 | M79: 45
A80: 2013-07-06 | B80: 10:59:14 | C80: 09:59:14 | D80: 468 | E80: -50.3 | F80: -41.8 | J80: 434.2785 | L80: -56.799668 | M80: 45
A81: 2013-07-06 | B81: 10:59:20 | C81: 09:59:20 | D81: 474 | E81: -50.7 | F81: -42.4 | I81: 09:59:25 | J81: 434.2785 | L81: -57.168138 | M81: 45
A82: 2013-07-06 | B82: 10:59:26 | C82: 09:59:26 | D82: 480 | E82: -51 | F82: -42.9 | I82: 09:59:35 | J82: 434.2779 | L82: -57.44450151 | M82: 45
A83: 2013-07-06 | B83: 10:59:32 | C83: 09:59:32 | D83: 486 | E83: -51.4 | F83: -43.3 | I83: 09:59:45 | J83: 434.2779 | L83: -57.81300087 | M83: 45
A84: 2013-07-06 | B84: 10:59:38 | C84: 09:59:38 | D84: 492 | E84: -51.8 | F84: -43.8 | J84: 434.2773 | L84: -58.18151697 | M84: 45
A85: 2013-07-06 | B85: 10:59:44 | C85: 09:59:44 | D85: 498 | E85: -52.2 | F85: -44.3 | J85: 434.2773 | L85: -58.55004981 | M85: 45
A86: 2013-07-06 | B86: 10:59:50 | C86: 09:59:50 | D86: 504 | E86: -52.6 | F86: -44.8 | I86: 09:59:55 | J86: 434.2773 | L86: -58.91859935 | M86: 45
A87: 2013-07-06 | B87: 10:59:56 | C87: 09:59:56 | D87: 510 | E87: -53 | F87: -45.4 | I87: 10:00:05 | J87: 434.2773 | L87: -59.28716558 | M87: 45
A88: 2013-07-06 | B88: 11:00:02 | C88: 10:00:02 | D88: 516 | E88: -53.4 | F88: -45.9 | I88: 10:00:15 | J88: 434.2764 | L88: -59.65574846 | M88: 45
A89: 2013-07-06 | B89: 11:00:08 | C89: 10:00:08 | D89: 522 | E89: -53.9 | F89: -46.3 | J89: 434.2763 | L89: -60.11650047 | M89: 45
A90: 2013-07-06 | B90: 11:00:14 | C90: 10:00:14 | D90: 528 | E90: -54.4 | F90: -46.8 | J90: 434.2763 | L90: -60.57727844 | M90: 45
A91: 2013-07-06 | B91: 11:00:20 | C91: 10:00:20 | D91: 534 | E91: -54.8 | F91: -47.4 | I91: 10:00:25 | J91: 434.2763 | L91: -60.94591947 | M91: 45
A92: 2013-07-06 | B92: 11:00:26 | C92: 10:00:26 | D92: 540 | E92: -55.2 | F92: -47.8 | I92: 10:00:35 | J92: 434.2764 | L92: -61.31457707 | M92: 45
A93: 2013-07-06 | B93: 11:00:32 | C93: 10:00:32 | D93: 546 | E93: -55.4 | F93: -48.3 | I93: 10:00:45 | J93: 434.2756 | L93: -61.49891207 | M93: 45
A94: 2013-07-06 | B94: 11:00:38 | C94: 10:00:38 | D94: 552 | E94: -55.6 | F94: -48.6 | J94: 434.2756 | L94: -61.6832512 | M94: 45
A95: 2013-07-06 | B95: 11:00:44 | C95: 10:00:44 | D95: 558 | E95: -55.6 | F95: -48.9 | J95: 434.2756 | L95: -61.6832512 | M95: 45
A96: 2013-07-06 | B96: 11:00:50 | C96: 10:00:50 | D96: 564 | E96: -55.6 | F96: -49.1 | I96: 10:00:55 | J96: 434.2756 | L96: -61.6832512 | M96: 45
A97: 2013-07-06 | B97: 11:00:56 | C97: 10:00:56 | D97: 570 | E97: -55.4 | F97: -49.3 | I97: 10:01:05 | J97: 434.2752 | L97: -61.49891207 | M97: 45
A98: 2013-07-06 | B98: 11:01:02 | C98: 10:01:02 | D98: 576 | E98: -55.2 | F98: -49.4 | I98: 10:01:15 | J98: 434.2747 | L98: -61.31457707 | M98: 45
A99: 2013-07-06 | B99: 11:01:08 | C99: 10:01:08 | D99: 582 | E99: -54.8 | F99: -49.4 | J99: 434.2745 | L99: -60.94591947 | M99: 45
A100: 2013-07-06 | B100: 11:01:14 | C100: 10:01:14 | D100: 588 | E100: -54.4 | F100: -49.3 | J100: 434.2745 | L100: -60.57727844 | M100: 45
A101: 2013-07-06 | B101: 11:01:20 | C101: 10:01:20 | D101: 594 | E101: -54 | F101: -49.2 | I101: 10:01:25 | J101: 434.2745 | L101: -60.20865399 | M101: 45
A102: 2013-07-06 | B102: 11:01:26 | C102: 10:01:26 | D102: 600 | E102: -53.8 | F102: -49.2 | I102: 10:01:35 | J102: 434.2741 | L102: -60.02434799 | M102: 45
A103: 2013-07-06 | B103: 11:01:32 | C103: 10:01:32 | D103: 606 | E103: -53.7 | F103: -49.2 | I103: 10:01:45 | J103: 434.2733 | L103: -59.93219655 | M103: 45
A104: 2013-07-06 | B104: 11:01:38 | C104: 10:01:38 | D104: 612 | E104: -53.6 | F104: -49.2 | J104: 434.2733 | L104: -59.84004615 | M104: 45
A105: 2013-07-06 | B105: 11:01:44 | C105: 10:01:44 | D105: 618 | E105: -53.7 | F105: -49.3 | J105: 434.2733 | L105: -59.93219655 | M105: 45
A106: 2013-07-06 | B106: 11:01:50 | C106: 10:01:50 | D106: 624 | E106: -53.9 | F106: -49.4 | I106: 10:01:55 | J106: 434.2733 | L106: -60.11650047 | M106: 45
A107: 2013-07-06 | B107: 11:01:56 | C107: 10:01:56 | D107: 630 | E107: -54.2 | F107: -49.6 | I107: 10:02:05 | J107: 434.2729 | L107: -60.39296414 | M107: 45
A108: 2013-07-06 | B108: 11:02:02 | C108: 10:02:02 | D108: 636 | E108: -54.5 | F108: -49.8 | I108: 10:02:15 | J108: 434.2725 | L108: -60.66943714 | M108: 45
A109: 2013-07-06 | B109: 11:02:08 | C109: 10:02:08 | D109: 642 | E109: -54.9 | F109: -50.1 | J109: 434.2721 | L109: -61.03808232 | M109: 45
A110: 2013-07-06 | B110: 11:02:14 | C110: 10:02:14 | D110: 648 | E110: -55.2 | F110: -50.4 | J110: 434.2721 | L110: -61.31457707 | M110: 45
A111: 2013-07-06 | B111: 11:02:20 | C111: 10:02:20 | D111: 654 | E111: -55.5 | F111: -50.6 | I111: 10:02:25 | J111: 434.2721 | L111: -61.59108112 | M111: 45
A112: 2013-07-06 | B112: 11:02:26 | C112: 10:02:26 | D112: 660 | E112: -55.6 | F112: -50.9 | I112: 10:02:35 | J112: 434.2724 | L112: -61.6832512 | M112: 45
A113: 2013-07-06 | B113: 11:02:32 | C113: 10:02:32 | D113: 666 | E113: -55.6 | F113: -51 | I113: 10:02:45 | J113: 434.2724 | L113: -61.6832512 | M113: 45
A114: 2013-07-06 | B114: 11:02:38 | C114: 10:02:38 | D114: 672 | E114: -55.3 | F114: -51.1 | J114: 434.2724 | L114: -61.40674405 | M114: 45
A115: 2013-07-06 | B115: 11:02:44 | C115: 10:02:44 | D115: 678 | E115: -55 | F115: -51 | J115: 434.2724 | L115: -61.1302462 | M115: 45
A116: 2013-07-06 | B116: 11:02:50 | C116: 10:02:50 | D116: 684 | E116: -54.5 | F116: -50.8 | I116: 10:02:55 | J116: 434.2724 | L116: -60.66943714 | M116: 45
A117: 2013-07-06 | B117: 11:02:56 | C117: 10:02:56 | D117: 690 | E117: -54 | F117: -50.6 | I117: 10:03:05 | J117: 434.2722 | L117: -60.20865399 | M117: 45
A118: 2013-07-06 | B118: 11:03:02 | C118: 10:03:02 | D118: 696 | E118: -53.5 | F118: -50.4 | I118: 10:03:15 | J118: 434.2722 | L118: -59.74789679 | M118: 45
A119: 2013-07-06 | B119: 11:03:08 | C119: 10:03:08 | D119: 702 | E119: -53.1 | F119: -50.1 | J119: 434.2722 | L119: -59.37930974 | M119: 45
A120: 2013-07-06 | B120: 11:03:14 | C120: 10:03:14 | D120: 708 | E120: -52.8 | F120: -50 | J120: 434.2722 | L120: -59.10288038 | M120: 45
A121: 2013-07-06 | B121: 11:03:20 | C121: 10:03:20 | D121: 714 | E121: -52.7 | F121: -49.8 | I121: 10:03:25 | J121: 434.2722 | L121: -59.01073934 | M121: 45
A122: 2013-07-06 | B122: 11:03:26 | C122: 10:03:26 | D122: 720 | E122: -52.7 | F122: -49.8 | I122: 10:03:35 | J122: 434.2718 | L122: -59.01073934 | M122: 45
A123: 2013-07-06 | B123: 11:03:32 | C123: 10:03:32 | D123: 726 | E123: -52.9 | F123: -49.8 | I123: 10:03:45 | J123: 434.2717 | L123: -59.19502246 | M123: 45
A124: 2013-07-06 | B124: 11:03:38 | C124: 10:03:38 | D124: 732 | E124: -53.2 | F124: -49.9 | J124: 434.2711 | L124: -59.47145494 | M124: 45
A125: 2013-07-06 | B125: 11:03:44 | C125: 10:03:44 | D125: 738 | E125: -53.7 | F125: -50.1 | J125: 434.2711 | L125: -59.93219655 | M125: 45
A126: 2013-07-06 | B126: 11:03:50 | C126: 10:03:50 | D126: 744 | E126: -54.3 | F126: -50.4 | I126: 10:03:55 | J126: 434.2711 | L126: -60.48512077 | M126: 45
A127: 2013-07-06 | B127: 11:03:56 | C127: 10:03:56 | D127: 750 | E127: -54.7 | F127: -50.7 | I127: 10:04:05 | J127: 434.2708 | L127: -60.85375766 | M127: 45
A128: 2013-07-06 | B128: 11:04:02 | C128: 10:04:02 | D128: 756 | E128: -55.1 | F128: -51 | I128: 10:04:15 | J128: 434.2714 | L128: -61.22241111 | M128: 45
A129: 2013-07-06 | B129: 11:04:08 | C129: 10:04:08 | D129: 762 | E129: -55.2 | F129: -51.3 | J129: 434.2712 | L129: -61.31457707 | M129: 45
A130: 2013-07-06 | B130: 11:04:14 | C130: 10:04:14 | D130: 768 | E130: -55.2 | F130: -51.3 | J130: 434.2712 | L130: -61.31457707 | M130: 45
A131: 2013-07-06 | B131: 11:04:20 | C131: =TIME(HOUR(B131)-1,MINUTE(B131),SECOND(B131)) -> 10:04:20 | D131: =(B131*86400) -39086 -> 774 | E131: -54.9 | F131: -51.3 | I131: 10:04:25 | J131: 434.2712 | L131: =(E131 - (14.55 + 0.114 * E131) * (1 - (0.01 * M131)) - ((2.5 + 0.007 * E131) * (1 - (0.01 * M131))) ^ 3 - (15.9 + 0.117 * E131) * (1 - (0.01 * M131)) ^ 14) -> -61.03808232 | M131: 45
A132: 2013-07-06 | B132: 11:04:26 | C132: 10:04:26 | D132: 780 | E132: -54.5 | F132: -51.2 | I132: 10:04:35 | J132: 434.2718 | L132: -60.66943714 | M132: 45
A133: 2013-07-06 | B133: 11:04:32 | C133: 10:04:32 | D133: 786 | E133: -54.1 | F133: -51 | I133: 10:04:45 | J133: 434.2715 | L133: -60.30080855 | M133: 45
A134: 2013-07-06 | B134: 11:04:38 | C134: 10:04:38 | D134: 792 | E134: -53.7 | F134: -50.8 | J134: 434.2718 | L134: -59.93219655 | M134: 45
A135: 2013-07-06 | B135: 11:04:44 | C135: 10:04:44 | D135: 798 | E135: -53.2 | F135: -50.6 | J135: 434.2718 | L135: -59.47145494 | M135: 45
A136: 2013-07-06 | B136: 11:04:50 | C136: 10:04:50 | D136: 804 | E136: -52.8 | F136: -50.4 | I136: 10:04:55 | J136: 434.2718 | L136: -59.10288038 | M136: 45
A137: 2013-07-06 | B137: 11:04:56 | C137: 10:04:56 | D137: 810 | E137: -52.4 | F137: -50.1 | I137: 10:05:05 | J137: 434.272 | L137: -58.73432249 | M137: 45
A138: 2013-07-06 | B138: 11:05:02 | C138: 10:05:02 | D138: 816 | E138: -52 | F138: -49.9 | I138: 10:05:15 | J138: 434.2718 | L138: -58.3657813 | M138: 45
A139: 2013-07-06 | B139: 11:05:08 | C139: 10:05:08 | D139: 822 | E139: -51.7 | F139: -49.7 | J139: 434.2717 | L139: -58.08938638 | M139: 45
A140: 2013-07-06 | B140: 11:05:14 | C140: 10:05:14 | D140: 828 | E140: -51.3 | F140: -49.4 | J140: 434.2717 | L140: -57.72087446 | M140: 45
A141: 2013-07-06 | B141: 11:05:20 | C141: 10:05:20 | D141: 834 | E141: -50.9 | F141: -49.1 | I141: 10:05:25 | J141: 434.2717 | L141: -57.35237929 | M141: 45
A142: 2013-07-06 | B142: 11:05:26 | C142: 10:05:26 | D142: 840 | E142: -50.4 | F142: -48.9 | I142: 10:05:35 | J142: 434.2711 | L142: -56.89178393 | M142: 45
A143: 2013-07-06 | B143: 11:05:32 | C143: 10:05:32 | D143: 846 | E143: -49.8 | F143: -48.6 | I143: 10:05:45 | J143: 434.271 | L143: -56.33910415 | M143: 45
A144: 2013-07-06 | B144: 11:05:38 | C144: 10:05:38 | D144: 852 | E144: -49 | F144: -48.2 | J144: 434.271 | L144: -55.60225673 | M144: 45
A145: 2013-07-06 | B145: 11:05:44 | C145: 10:05:44 | D145: 858 | E145: -47.8 | F145: -47.6 | J145: 434.271 | L145: -54.49711227 | M145: 45
A146: 2013-07-06 | B146: 11:05:50 | C146: 10:05:50 | D146: 864 | E146: -46.3 | F146: -46.7 | I146: 10:05:55 | J146: 434.271 | L146: -53.11589624 | M146: 45
A147: 2013-07-06 | B147: 11:05:56 | C147: 10:05:56 | D147: 870 | E147: -44.8 | F147: -45.9 | I147: 10:06:05 | J147: 434.2715 | L147: -51.73491969 | M147: 45
A148: 2013-07-06 | B148: 11:06:02 | C148: 10:06:02 | D148: 876 | E148: -43.4 | F148: -44.9 | I148: 10:06:15 | J148: 434.2714 | L148: -50.44622532 | M148: 45
A149: 2013-07-06 | B149: 11:06:08 | C149: 10:06:08 | D149: 882 | E149: -42.2 | F149: -44 | J149: 434.2719 | L149: -49.34179769 | M149: 45
A150: 2013-07-06 | B150: 11:06:14 | C150: 10:06:14 | D150: 888 | E150: -41.2 | F150: -43.2 | J150: 434.2719 | L150: -48.42155993 | M150: 45
A151: 2013-07-06 | B151: 11:06:20 | C151: 10:06:20 | D151: 894 | E151: -40.5 | F151: -42.4 | I151: 10:06:25 | J151: 434.2719 | L151: -47.77745784 | M151: 45
A152: 2013-07-06 | B152: 11:06:26 | C152: 10:06:26 | D152: 900 | E152: -39.9 | F152: -41.8 | I152: 10:06:35 | J152: 434.2717 | L152: -47.22541262 | M152: 45
A153: 2013-07-06 | B153: 11:06:32 | C153: 10:06:32 | D153: 906 | E153: -39.3 | F153: -41.2 | I153: 10:06:45 | J153: 434.2718 | L153: -46.6734065 | M153: 45
A154: 2013-07-06 | B154: 11:06:38 | C154: 10:06:38 | D154: 912 | E154: -38.6 | F154: -40.7 | J154: 434.2723 | L154: -46.02944888 | M154: 45
A155: 2013-07-06 | B155: 11:06:44 | C155: 10:06:44 | D155: 918 | E155: -37.9 | F155: -40.1 | J155: 434.2723 | L155: -45.38554471 | M155: 45
A156: 2013-07-06 | B156: 11:06:50 | C156: 10:06:50 | D156: 924 | E156: -36.9 | F156: -39.4 | I156: 10:06:55 | J156: 434.2723 | L156: -44.46577454 | M156: 45
A157: 2013-07-06 | B157: 11:06:56 | C157: 10:06:56 | D157: 930 | E157: -35.8 | F157: -38.6 | I157: 10:07:05 | J157: 434.2727 | L157: -43.45415403 | M157: 45
A158: 2013-07-06 | B158: 11:07:02 | C158: 10:07:02 | D158: 936 | E158: -34.6 | F158: -37.8 | I158: 10:07:15 | J158: 434.2733 | L158: -42.35071986 | M158: 45
A159: 2013-07-06 | B159: 11:07:08 | C159: 10:07:08 | D159: 942 | E159: -33.4 | F159: -36.9 | J159: 434.2737 | L159: -41.24744472 | M159: 45
A160: 2013-07-06 | B160: 11:07:14 | C160: 10:07:14 | D160: 948 | E160: -32.4 | F160: -36 | J160: 434.2737 | L160: -40.32817068 | M160: 45
A161: 2013-07-06 | B161: 11:07:20 | C161: 10:07:20 | D161: 954 | E161: -31.4 | F161: -35.1 | I161: 10:07:25 | J161: 434.2737 | L161: -39.40900784 | M161: 45
A162: 2013-07-06 | B162: 11:07:26 | C162: 10:07:26 | D162: 960 | E162: -30.6 | F162: -34.4 | I162: 10:07:35 | J162: 434.2742 | L162: -38.67375785 | M162: 45
A163: 2013-07-06 | B163: 11:07:32 | C163: 10:07:32 | D163: 966 | E163: -29.9 | F163: -33.6 | I163: 10:07:45 | J163: 434.2747 | L163: -38.03047281 | M163: 45
A164: 2013-07-06 | B164: 11:07:38 | C164: 10:07:38 | D164: 972 | E164: -29.3 | F164: -32.9 | J164: 434.2753 | L164: -37.47912932 | M164: 45
A165: 2013-07-06 | B165: 11:07:44 | C165: 10:07:44 | D165: 978 | E165: -28.7 | F165: -32.3 | J165: 434.2753 | L165: -36.92782624 | M165: 45
A166: 2013-07-06 | B166: 11:07:50 | C166: 10:07:50 | D166: 984 | E166: -28 | F166: -31.7 | I166: 10:07:55 | J166: 434.2753 | L166: -36.28469049 | M166: 45
A167: 2013-07-06 | B167: 11:07:56 | C167: 10:07:56 | D167: 990 | E167: -27.2 | F167: -31 | I167: 10:08:05 | J167: 434.2762 | L167: -35.54974583 | M167: 45
A168: 2013-07-06 | B168: 11:08:02 | C168: 10:08:02 | D168: 996 | E168: -26.4 | F168: -30.3 | I168: 10:08:15 | J168: 434.2766 | L168: -34.81487347 | M168: 45
A169: 2013-07-06 | B169: 11:08:08 | C169: 10:08:08 | D169: 1002 | E169: -25.4 | F169: -29.5 | J169: 434.277 | L169: -33.89638497 | M169: 45
A170: 2013-07-06 | B170: 11:08:14 | C170: 10:08:14 | D170: 1008 | E170: -24.4 | F170: -28.6 | J170: 434.277 | L170: -32.97801006 | M170: 45
A171: 2013-07-06 | B171: 11:08:20 | C171: 10:08:20 | D171: 1014 | E171: -23.4 | F171: -27.8 | I171: 10:08:25 | J171: 434.277 | L171: -32.05974907 | M171: 45
A172: 2013-07-06 | B172: 11:08:26 | C172: 10:08:26 | D172: 1020 | E172: -22.5 | F172: -27 | I172: 10:08:35 | J172: 434.2775 | L172: -31.23341188 | M172: 45
A173: 2013-07-06 | B173: 11:08:32 | C173: 10:08:32 | D173: 1026 | E173: -21.7 | F173: -26.3 | I173: 10:08:45 | J173: 434.278 | L173: -30.49896784 | M173: 45
A174: 2013-07-06 | B174: 11:08:38 | C174: 10:08:38 | D174: 1032 | E174: -21 | F174: -25.5 | J174: 434.278 | L174: -29.8563896 | M174: 45
A175: 2013-07-06 | B175: 11:08:44 | C175: 10:08:44 | D175: 1038 | E175: -20.2 | F175: -24.8 | J175: 434.278 | L175: -29.12208353 | M175: 45
A176: 2013-07-06 | B176: 11:08:50 | C176: 10:08:50 | D176: 1044 | E176: -19.4 | F176: -24.1 | I176: 10:08:55 | J176: 434.278 | L176: -28.38785129 | M176: 45
A177: 2013-07-06 | B177: 11:08:56 | C177: 10:08:56 | D177: 1050 | E177: -18.5 | F177: -23.4 | I177: 10:09:05 | J177: 434.2784 | L177: -27.56192851 | M177: 45
A178: 2013-07-06 | B178: 11:09:02 | C178: 10:09:02 | D178: 1056 | E178: -17.5 | F178: -22.6 | I178: 10:09:15 | J178: 434.2786 | L178: -26.64434669 | M178: 45
A179: 2013-07-06 | B179: 11:09:08 | C179: 10:09:08 | D179: 1062 | E179: -16.6 | F179: -21.8 | J179: 434.2789 | L179: -25.81862247 | M179: 45
A180: 2013-07-06 | B180: 11:09:14 | C180: 10:09:14 | D180: 1068 | E180: -15.8 | F180: -21 | J180: 434.2789 | L180: -25.08472467 | M180: 45
A181: 2013-07-06 | B181: 11:09:20 | C181: 10:09:20 | D181: 1074 | E181: -14.8 | F181: -20.2 | I181: 10:09:25 | J181: 434.2789 | L181: -24.16745763 | M181: 45
A182: 2013-07-06 | B182: 11:09:26 | C182: 10:09:26 | D182: 1080 | E182: -13.3 | F182: -19.3 | I182: 10:09:35 | J182: 434.2794 | L182: -22.79177695 | M182: 45
A183: 2013-07-06 | B183: 11:09:32 | C183: 10:09:32 | D183: 1086 | E183: -11.5 | F183: -18.2 | I183: 10:09:45 | J183: 434.2802 | L183: -21.14130991 | M183: 45
A184: 2013-07-06 | B184: 11:09:38 | C184: 10:09:38 | D184: 1092 | E184: -9.7 | F184: -16.9 | J184: 434.28 | L184: -19.49122632 | M184: 45
A185: 2013-07-06 | B185: 11:09:44 | C185: 10:09:44 | D185: 1098 | E185: -8.2 | F185: -15.7 | J185: 434.28 | L185: -18.11645101 | M185: 45
A186: 2013-07-06 | B186: 11:09:50 | C186: 10:09:50 | D186: 1104 | E186: -7.3 | F186: -14.6 | I186: 10:09:55 | J186: 434.28 | L186: -17.29171478 | M186: 45
A187: 2013-07-06 | B187: 11:09:56 | C187: 10:09:56 | D187: 1110 | E187: -6.8 | F187: -13.7 | I187: 10:10:05 | J187: 434.2805 | L187: -16.8335699 | M187: 45
A188: 2013-07-06 | B188: 11:10:02 | C188: 10:10:02 | D188: 1116 | E188: -6.7 | F188: -13.1 | I188: 10:10:15 | J188: 434.2805 | L188: -16.74194452 | M188: 45
A189: 2013-07-06 | B189: 11:10:08 | C189: 10:10:08 | D189: 1122 | E189: -6.8 | F189: -12.7 | J189: 434.2807 | L189: -16.8335699 | M189: 45
A190: 2013-07-06 | B190: 11:10:14 | C190: 10:10:14 | D190: 1128 | E190: -6.9 | F190: -12.3 | J190: 434.2807 | L190: -16.92519648 | M190: 45
A191: 2013-07-06 | B191: 11:10:20 | C191: 10:10:20 | D191: 1134 | E191: -6.8 | F191: -11.9 | I191: 10:10:25 | J191: 434.2807 | L191: -16.8335699 | M191: 45
A192: 2013-07-06 | B192: 11:10:26 | C192: 10:10:26 | D192: 1140 | E192: -6.6 | F192: -11.5 | I192: 10:10:35 | J192: 434.2814 | L192: -16.65032034 | M192: 45
A193: 2013-07-06 | B193: 11:10:32 | C193: 10:10:32 | D193: 1146 | E193: -6 | F193: -11 | I193: 10:10:45 | J193: 434.2814 | L193: -16.10060048 | M193: 45
A194: 2013-07-06 | B194: 11:10:38 | C194: 10:10:38 | D194: 1152 | E194: -5.3 | F194: -10.4 | J194: 434.2816 | L194: -15.45931536 | M194: 45
A195: 2013-07-06 | B195: 11:10:44 | C195: =TIME(HOUR(B195)-1,MINUTE(B195),SECOND(B195)) -> 10:10:44 | D195: =(B195*86400) -39086 -> 1158 | E195: -4.3 | F195: -9.7 | J195: 434.2816 | L195: =(E195 - (14.55 + 0.114 * E195) * (1 - (0.01 * M195)) - ((2.5 + 0.007 * E195) * (1 - (0.01 * M195))) ^ 3 - (15.9 + 0.117 * E195) * (1 - (0.01 * M195)) ^ 14) -> -14.54329619 | M195: 45
A196: 2013-07-06 | B196: 11:10:50 | C196: 10:10:50 | D196: 1164 | E196: -3.3 | F196: -8.9 | I196: 10:10:55 | J196: 434.2816 | L196: -13.62739782 | M196: 45
A197: 2013-07-06 | B197: 11:10:56 | C197: 10:10:56 | D197: 1170 | E197: -2.3 | F197: -8.1 | I197: 10:11:05 | J197: 434.2819 | L197: -12.71162062 | M197: 45
A198: 2013-07-06 | B198: 11:11:02 | C198: 10:11:02 | D198: 1176 | E198: -1.4 | F198: -7.3 | I198: 10:11:15 | J198: 434.282 | L198: -11.887525 | M198: 45
A199: 2013-07-06 | B199: 11:11:08 | C199: 10:11:08 | D199: 1182 | E199: -0.7 | F199: -6.6 | J199: 434.2822 | L199: -11.24662995 | M199: 45
A200: 2013-07-06 | B200: 11:11:14 | C200: 10:11:14 | D200: 1188 | E200: 0 | F200: -5.9 | J200: 434.2822 | L200: -10.60579469 | M200: 45
... 1297 more rows
